Workbook

Sheet Home
B23: Updated April 9, 2020

Sheet Register Setup
B4: Battery Charge Parameters | H4: Input: | K4: Output:
B6: Battery Voltage (V) | C6: 4.2 | H6: Fast Charge Control (0x03) | I6: =BIN2DEC(I8) -> 20 | J6: (Decimal) | K6: Termination/Pre-charge (0x04) | L6: =BIN2DEC(L8) -> 14 | M6: (Decimal)
I7: =BIN2HEX(I8,2) -> 14 | J7: (Hex) | L7: =BIN2HEX(L8,2) -> 0E | M7: (Hex)
B8: Fast Charge Current (mA) | C8: 10 | I8: =CONCATENATE(INDEX(Sheet2!G1:G59,(MATCH(C8,Sheet2!E1:E59,0))),Sheet2!BL2*1,Sheet2!BL3*1) -> 00010100 | J8: (Binary) | L8: =CONCATENATE(INDEX(Sheet2!K1:K42,(MATCH(C10,Sheet2!I1:I42,0))),1*NOT(Sheet2!BL4),0) -> 00001110 | M8: (Binary)
B10: Pre-Chrg / Term Current (mA) | C10: 2 | H10: Battery Voltage Control (0x05) | I10: =BIN2DEC(I12) -> 120 | J10: (Decimal)
I11: =BIN2HEX(I12,2) -> 78 | J11: (Hex)
I12: =DEC2BIN(2*ROUNDUP((C6-3.6)/0.01,0), 8) -> 01111000 | J12: (Binary)
B15: System Power
B17: Buck Converter Voltage (V) | C17: 1.8 | H17: SYS VOUT Control (0x06) | I17: =BIN2DEC(I19) -> 170 | J17: (Decimal) | K17: Load Switch and LDO Control (0x07) | L17: =BIN2DEC(L19) -> 124 | M17: (Decimal)
I18: =BIN2HEX(I19,2) -> AA | J18: (Hex) | L18: =BIN2HEX(L19,2) -> 7C | M18: (Hex)
B19: LS/LDO Voltage (V) | C19: Load Switch | I19: =CONCATENATE(1*NOT(Sheet2!BL5),INDEX(Sheet2!N1:N39,(MATCH(C17,Sheet2!M1:M39))),0) -> 10101010 | J19: (Binary) | L19: =CONCATENATE(1*Sheet2!BL6,INDEX(Sheet2!R1:R27,(MATCH(C19,Sheet2!P1:P27))),0,1*Sheet2!BL8) -> 01111100 | M19: (Binary)
B24: Advanced Features
B26: Wake Timer 1 [MRWAKE1] (ms) | C26: 0 - 80 ms | E26: Wake Timer 2 [MRWAKE2] (ms) | F26: 1 - 1500 ms | H26: Push Button Control (0x08) | I26: =BIN2DEC(I28) -> 104 | J26: (Decimal) | K26: Status and Ship Mode Control (0x00) | L26: =BIN2DEC(L28) -> 0 | M26: (Decimal)
I27: =BIN2HEX(I28,2) -> 68 | J27: (Hex) | L27: =BIN2HEX(L28,2) -> 00 | M27: (Hex)
B28: After Reset, Device Enters [MRREC]: | C28: Hi-Z | E28: MRRESET (s) | F28: 1 - 9 s | I28: =CONCATENATE(IF(C26="0 - 80 ms",0,1),IF(F26="1 - 1500 ms",1,0),IF(C28="Hi-Z",1,0),IF(F28="0 - 5 s",DEC2BIN(0,2),IF(F28="1 - 9 s",DEC2BIN(1,2),IF(F28="10 - 11 s",DEC2BIN(2,2),DEC2BIN(3,2)))),1*VINDPM_ACTIVE,0,0) -> 01101000 | J28: (Binary) | L28: =CONCATENATE(0,0,1*Sheet2!BL7,0,0,0,0,0) -> 00000000 | M28: (Binary)
B32: Input Current Limit (mA) | C32: 100 | E32: Battery UVLO (V) | F32: 3 | H32: ILIM and Battery UVLO Control (0x09) | I32: =BIN2DEC(I34) -> 10 | J32: (Decimal) | K32: Voltage Based Battery Monitor (0x0A) | L32: =BIN2DEC(L34) -> 0 | M32: (Decimal)
I33: =BIN2HEX(I34,2) -> 0A | J33: (Hex) | L33: =BIN2HEX(L34,2) -> 00 | M33: (Hex)
I34: =CONCATENATE(1*VIN_PGOOD,0,INDEX(Sheet2!V1:V8,(MATCH('Register Setup'!C32,Sheet2!T1:T8))),INDEX(Sheet2!Z1:Z5,(MATCH(F32,Sheet2!X1:X5)))) -> 00001010 | J34: (Binary) | L34: =CONCATENATE(1*THERMREG_ACTIVE,0,0,0,0,0,0,0) -> 00000000 | M34: (Binary) | O34: (Decimal)
O35: (Hex)
B36: VINDPM Threshold (V) | C36: 4.6 | E36: Safety Timer Limit | F36: 3 hour | H36: IVIN_DPM and Timers (0x0B) | I36: =BIN2DEC(I38) -> 66 | J36: (Decimal) | O36: (Binary)
I37: =BIN2HEX(I38,2) -> 42 | J37: (Hex)
I38: =CONCATENATE(1*VIN_OVP_FAULT,INDEX(Sheet2!AD1:AD8,(MATCH('Register Setup'!C36,Sheet2!AB1:AB8))),1*BAT_OCP_FAULT,INDEX(Sheet2!AH1:AH4,(MATCH('Register Setup'!F36,Sheet2!AF1:AF4))),0) -> 01000010 | J38: (Binary)
H42: Faults and Faults Mask (0x01) | I42: =BIN2DEC(I44) -> 0 | J42: (Decimal) | K42: TS Control and Faults Masks (0x02) | L42: =BIN2DEC(L44) -> 136 | M42: (Decimal)
I43: =BIN2HEX(I44,2) -> 00 | J43: (Hex) | L43: =BIN2HEX(L44,2) -> 88 | M43: (Hex)
I44: =CONCATENATE(0,0,0,0,1*Sheet2!BL9,1*Sheet2!BL10,1*Sheet2!BL11,1*Sheet2!BL12) -> 00000000 | J44: (Binary) | L44: =CONCATENATE(1*NOT(Sheet2!BL13),0,0,0,1*NOT(CHRG_CV),1*CHARGE_DONE,1*IINLIM_ACTIVE,1*VDPPM_ACTIVE) -> 10001000 | M44: (Binary)

Sheet Schematic Checklist
B2: BQ25120A Schematic Checklist
A3: FALSE | B3: Minimum of 1uF capacitance on IN pin to GND. Account for capacitor derating. Ensure capacitor is rated to twice input voltage.
A4: FALSE | B4: Connect minimum 3uF capacitance on PMID pin to GND. Account for capacitor derating. Ensure capacitor is rated to twice input voltage.
A5: FALSE | B5: Ensure USBGND and PGND are tied together. | E5: define absent / present
A6: FALSE | B6: /CD pin is typically connected to MCU GPIO. Pin is internally pulled low with 900kΩ resistor. /CD is governed by table to the right.
A7: FALSE | B7: SDA pulled up to VSYS with 10kΩ resistor.
A8: FALSE | B8: SCL pulled up to VSYS with 10KΩ resistor. | C8: VIN present: Vin > Vuvlo & Vin > Vbat + Vslp & Vbat < Vovp Else, absent
A9: FALSE | B9: Connect appropriate resistor value to ILIM pin. The resistor value should be between 500Ω and 4kΩ.
A10: FALSE | B10: LSCTRL should be pulled either high or low depending on desired startup state. LDO can be disabled or enabled through I2C regardless of LSCTRL state. If LDO voltage is updated through I2C, LDO will need to be disabled and then enabled for voltage change to occur.
A11: FALSE | B11: Connect appropriate resistor value to ISET pin. The resistor value should be between 665Ω and 39.2kΩ. Use passive component calculator for exact values.
A12: FALSE | B12: Connect appropriate resistor value to IPRETERM pin. The resistor value should be between 549Ω and 15kΩ. Use passive component calculator for exact values.
A13: FALSE | B13: /INT is an open-drain status output that signals charging status and fault interrupts. Connect to an LED or pull up to VSYS (or external pull-up voltage) with 100KΩ resistor.
A14: FALSE | B14: /PG is an open-drain status output that signals Power Good status. /MR can be level shifted to /PG when PGB_MR but in register 0x08h is enabled. Connect to an LED or pull up to VSYS(or external pull-up voltage) with 100KΩ resistor. Can be left floating if unused.
A15: FALSE | B15: /RESET is open drain active low in output. Pull up to VSYS (or external pull-up voltage) with 100kΩ resistor.
A16: FALSE | B16: /MR is pushbutton input that can be used to reset the device or count for wake timers. This pin is pulled up to VBAT internally and can be left floating if functionality is not needed. Note that if /MR is not used, the only way to exit shipmode if through VIN insertion.
A17: FALSE | B17: Connect 2.2µH inductor between SW and SYS.
A18: FALSE | B18: Connect minimum of 10µF capacitance on SYS. Account for capacitor derating. Ensure capacitor is rated for twice SYS voltage.
A19: FALSE | B19: Connect minimum of 1µF to LS/LDO. Account for capacitor derating. Ensure capacitor is rated for twice LS/LDO voltage.
A20: FALSE | B20: Connect minimum of 1µF from VINLS to GND. Account for capacitor derating. Ensure capacitor is rated for twice SYS voltage. VINLS is typically connected to PMID.
A21: FALSE | B21: Connect minimum of 1µF from BAT to GND. Account for capacitor derating. Ensure capacitor is rated for twice BAT voltage.
A22: FALSE | B22: Follow datasheet procedure on TS pin. If TS will NOT be used, set the TS in off mode with RHI = 37kΩ and RLO = 50kΩ with NTC thermistor absent. RHI should be pulled up to VIN.

Sheet Passive Component Calculator
B4: Input: | E4: Output:
B6: External Resistors
B8: Fast Charge Current [ISET] (mA) | C8: 300 | E8: RISET, Calc (Ω) | F8: =1000*(200/C8) -> 666.6666667
C9: Max 300 mA | E9: RISET, 1% (Ω) | F9: =INDEX(Sheet2!AU1:AU288,MATCH(MIN(ABS(Sheet2!AU1:AU288-F8)),ABS(Sheet2!AU1:AU288-F8),0)) -> 665
B12: Termination & Precharge Current [IPRETERM] (%) | C12: 10 | E12: RTERM (kΩ) | F12: =VLOOKUP(C12,Sheet2!AX1:AY4,2) -> 4.99
B13: Note: finer adjustments made through I2C | C13: % of ISET | E13: ITERM (mA) | F13: =C12/100*C8 -> 30
B16: Input Current Limit [ILIM] (mA) | C16: 400 | E16: RILIM, Calc (Ω) | F16: =1000*(200/C16) -> 500
C17: Max 400 mA | E17: RILIM, 1% (Ω) | F17: =INDEX(Sheet2!AU1:AU288,MATCH(MIN(ABS(Sheet2!AU1:AU288-F16)),ABS(Sheet2!AU1:AU288-F16),0)) -> 499
B19: Inductor
B21: ISYS (Max) (A) | C21: 0.2 | E21: Pk-Pk Inductor Ripple Current (A) | F21: =1000000*(C24*(1-(C24/C23)))/(C22*2000000) -> 0.2618181818
B22: Inductor (µH) | C22: 2.2 | E22: Maximum Inductor Current (A) | F22: =C21 + (F21 / 2) -> 0.3309090909
B23: VPMID / VIN (V) | C23: 5
B24: VSYS (V) | C24: 1.8

Sheet TS Calculator
B3: INPUT:
B4: OUTPUT: | E4: VHOT (V) | F4: =$C$6*0.15 -> 0.75
E5: VWARM (V) | F5: =$C$6*0.205 -> 1.025
B6: VIN (V) | C6: 5 | E6: VCOOL (V) | F6: =$C$6*0.36 -> 1.8
B7: VIN is the same as VDRV in the diagram | E7: VCOLD (V) | F7: =$C$6*0.398 -> 1.99
B10: Thermistor Resistances at Desired Temp Thresholds. USE OWN THERMISTOR DATA
B12: RHOT (Ω) | C12: 2872
B13: RCOLD (Ω) | C13: 28829
B15: External Resistor Values (Calculated and 1%)
B16: RLO, Calc (Ω) | C16: =($C$6*$C$13*$C$12*((1/$F$7) - (1/$F$4)))/($C$12*(($C$6/$F$4)-1) - ($C$13*(($C$6/$F$7)-1))) -> 12584.49333
B17: RLO, 1% (Ω) | C17: =INDEX(Sheet2!AU1:AU384,MATCH(MIN(ABS(Sheet2!AU1:AU384-C16)),ABS(Sheet2!AU1:AU384-C16),0)) -> 12700
B18: RHI, Calc (Ω) | C18: =(($C$6/$F$7)-1)/((1/$C$16) + (1/$C$13)) -> 13250.64034
B19: RHI, 1% (Ω) | C19: =INDEX(Sheet2!AU1:AU384,MATCH(MIN(ABS(Sheet2!AU1:AU384-C18)),ABS(Sheet2!AU1:AU384-C18),0)) -> 13300
B21: Thermistor Resistances at Cool and Warm Temps
B22: RCOOL (Ω) | C22: =($C$16*$C$18*0.36)/($C$16- ($C$16*0.36) - ($C$18*0.36)) -> 18280.6833
B23: RWARM (Ω) | C23: =(($C$16*$C$18*0.205)/($C$16-$C$16*0.205 - $C$18*0.205)) -> 4690.301516
B25: Reference Thermistor Data
B27: T (°C) | C27: R_THERM (Ω)
B28: -30 | C28: 130769
B29: -25 | C29: 99489 | E29: JEITA recommends 0°, 10°, 45°, and 60° C for TCOLD, TCOOL, TWARM, THOT respectively
B30: -20 | C30: 76385
B31: -15 | C31: 59157
B32: -10 | C32: 46194 | E32: To learn more about JEITA Compliance click here
B33: -5 | C33: 36356
B34: 0 | C34: 28829
B35: 5 | C35: 23025
B36: 10 | C36: 18515
B37: 15 | C37: 14986
B38: 20 | C38: 12205
B39: 25 | C39: 10000
B40: 30 | C40: 8240
B41: 35 | C41: 6828
B42: 40 | C42: 5687
B43: 45 | C43: 4760
B44: 50 | C44: 4004
B45: 55 | C45: 3384
B46: 60 | C46: 2872
B47: 65 | C47: 2449
B48: 70 | C48: 2096
B49: 75 | C49: 1801
B50: 80 | C50: 1554

Sheet Sheet2 (hidden)
A1: Batt Reg Voltage | D1: Charge Current Options | E1: Ext. Iset Resistor | F1: 31 | G1: =DEC2BIN(F1,6) -> 011111 | H1: Pre-term Current | I1: 0.5 | J1: 0 | K1: =DEC2BIN(J1,6) -> 000000 | L1: SYS VOUT | M1: 1.1 | N1: 000000 | O1: LDO | P1: Load Switch | Q1: 31 | R1: =DEC2BIN(Q1,5) -> 11111 | S1: inlim | T1: 50 | U1: 0 | V1: =DEC2BIN(U1,3) -> 000 | W1: BUVLO | X1: 2.2 | Y1: 6 | Z1: =DEC2BIN(Y1,3) -> 110 | AA1: VINDPM | AB1: 4.2 | AC1: 0 | AD1: =DEC2BIN(AC1,3) -> 000 | AE1: saftey timer | AF1: ½ hour | AG1: 0 | AH1: =DEC2BIN(AG1,2) -> 00 | AJ1: =CONCATENATE('Passive Component Calculator'!F12," kΩ") -> 4.99 kΩ | AL1: =CONCATENATE('TS Calculator'!C17/1000," kΩ") -> 12.7 kΩ | AT1: resistor 1% | AU1: 10 | AW1: preterm lookup | AX1: 5 | AY1: 15 | BL1: Charge Parameters 1
A2: 3.6 | E2: 5 | F2: 0 | G2: =DEC2BIN(F2,6) -> 000000 | I2: 1 | J2: 1 | K2: =DEC2BIN(J2,6) -> 000001 | M2: 1.2 | N2: 000001 | P2: 0.8 | Q2: 0 | R2: 00000 | T2: 100 | U2: 1 | V2: =DEC2BIN(U2,3) -> 001 | X2: 2.4 | Y2: 5 | Z2: =DEC2BIN(Y2,3) -> 101 | AB2: 4.3 | AC2: 1 | AD2: =DEC2BIN(AC2,3) -> 001 | AF2: 3 hour | AG2: 1 | AH2: =DEC2BIN(AG2,2) -> 01 | AJ2: =CONCATENATE('Passive Component Calculator'!F9," Ω") -> 665 Ω | AU2: 10.2 | AX2: 10 | AY2: 4.99 | BK2: Disable Charger | BL2: FALSE
A3: 3.61 | E3: 6 | F3: 1 | G3: =DEC2BIN(F3,6) -> 000001 | I3: 1.5 | J3: 2 | K3: 000010 | M3: 1.25 | N3: 000010 | P3: 0.9 | Q3: 1 | R3: 00001 | T3: 150 | U3: 2 | V3: 010 | X3: 2.6 | Y3: 4 | Z3: 100 | AB3: 4.4 | AC3: 2 | AD3: 010 | AF3: 9 hour | AG3: 2 | AH3: 10 | AJ3: =CONCATENATE('Passive Component Calculator'!F17," Ω") -> 499 Ω | AL3: =CONCATENATE('TS Calculator'!C19/1000," kΩ") -> 13.3 kΩ | AO3: TRUE | AU3: 10.5 | AX3: 15 | AY3: 1.65 | BK3: High impedance | BL3: FALSE
A4: 3.62 | E4: 7 | F4: 2 | G4: 000010 | I4: 2 | J4: 3 | K4: 000011 | M4: 1.3 | N4: 010000 | P4: 1 | Q4: 2 | R4: 00010 | T4: 200 | U4: 3 | V4: 011 | X4: 2.8 | Y4: 3 | Z4: 011 | AB4: 4.5 | AC4: 3 | AD4: 011 | AF4: Disabled | AG4: 3 | AH4: 11 | AO4: TRUE | AU4: 10.7 | AX4: 20 | AY4: 0.549 | BK4: Disable termination | BL4: FALSE
A5: 3.63 | E5: 8 | F5: 3 | G5: 000011 | I5: 2.5 | J5: 4 | K5: 000100 | M5: 1.333 | N5: 000011 | P5: 1.1 | Q5: 3 | R5: 00011 | T5: 250 | U5: 4 | V5: 100 | X5: 3 | Y5: 2 | Z5: 010 | AB5: 4.6 | AC5: 4 | AD5: 100 | AO5: TRUE | AU5: 11 | BK5: disable buck converter | BL5: FALSE
A6: 3.64 | E6: 9 | F6: 4 | G6: 000100 | I6: 3 | J6: 5 | K6: 000101 | M6: 1.4 | N6: 010001 | P6: 1.2 | Q6: 4 | R6: 00100 | T6: 300 | U6: 5 | V6: 101 | AB6: 4.7 | AC6: 5 | AD6: 101 | AO6: TRUE | AU6: 11.3 | BK6: enable ls/ldo | BL6: FALSE
A7: 3.65 | E7: 10 | F7: 5 | G7: 000101 | I7: 3.5 | J7: 6 | K7: 000110 | M7: 1.41 | N7: 000100 | P7: 1.3 | Q7: 5 | R7: 00101 | T7: 350 | U7: 6 | V7: 110 | AB7: 4.8 | AC7: 6 | AD7: 110 | AO7: TRUE | AU7: 11.5 | BK7: Shipmode | BL7: FALSE
A8: 3.66 | E8: 11 | F8: 6 | G8: 000110 | I8: 4 | J8: 7 | K8: 000111 | M8: 1.5 | N8: 000101 | P8: 1.4 | Q8: 6 | R8: 00110 | T8: 400 | U8: 7 | V8: =DEC2BIN(U8,3) -> 111 | AB8: 4.9 | AC8: 7 | AD8: 111 | AO8: TRUE | AU8: 11.8 | BK8: MRRESSET_VIN | BL8: FALSE
A9: 3.67 | E9: 12 | F9: 7 | G9: 000111 | I9: 4.5 | J9: 8 | K9: 001000 | M9: 1.583 | N9: 000110 | P9: 1.5 | Q9: 7 | R9: 00111 | AO9: TRUE | AU9: 12.1 | BK9: Mask Vin Overvoltage Fault | BL9: FALSE
A10: 3.68 | E10: 13 | F10: 8 | G10: 001000 | I10: 5 | J10: 9 | K10: 001001 | M10: 1.6 | N10: 010011 | P10: 1.6 | Q10: 8 | R10: 01000 | AO10: TRUE | AU10: 12.4 | BK10: Mask Vin Undervoltage Fault | BL10: FALSE
A11: 3.69 | E11: 14 | F11: 9 | G11: 001001 | I11: 6 | J11: 32 | K11: 100000 | M11: 1.667 | N11: 000111 | P11: 1.7 | Q11: 9 | R11: 01001 | AO11: TRUE | AU11: 12.7 | BK11: Mask Bat UVLO Fault | BL11: FALSE
A12: 3.7 | E12: 15 | F12: 10 | G12: 001010 | I12: 7 | J12: 33 | K12: 100001 | M12: 1.7 | N12: 010100 | P12: 1.8 | Q12: 10 | R12: 01010 | AO12: TRUE | AU12: 13 | BK12: Mask Bat OCP Fault | BL12: FALSE
A13: 3.71 | E13: 16 | F13: 11 | G13: 001011 | I13: 8 | J13: 34 | K13: 100010 | M13: 1.75 | N13: 001000 | P13: 1.9 | Q13: 11 | R13: 01011 | AO13: TRUE | AU13: 13.3 | BK13: disable TS | BL13: FALSE
A14: 3.72 | E14: 17 | F14: 12 | G14: 001100 | I14: 9 | J14: 35 | K14: 100011 | M14: 1.8 | N14: 010101 | P14: 2 | Q14: 12 | R14: 01100 | AO14: TRUE | AU14: 13.7 | BK14: Disable INT | BL14: FALSE
A15: 3.73 | E15: 18 | F15: 13 | G15: 001101 | I15: 10 | J15: 36 | K15: 100100 | M15: 1.833 | N15: 001001 | P15: 2.1 | Q15: 13 | R15: 01101 | AO15: TRUE | AU15: 14 | BK15: mask /mr wake int | BL15: FALSE
A16: 3.74 | E16: 19 | F16: 14 | G16: 001110 | I16: 11 | J16: 37 | K16: 100101 | M16: 1.9 | N16: 010110 | P16: 2.2 | Q16: 14 | R16: 01110 | AO16: TRUE | AU16: 14.3 | BK16: mask /mr RST int | BL16: FALSE
A17: 3.75 | E17: 20 | F17: 15 | G17: 001111 | I17: 12 | J17: 38 | K17: 100110 | M17: 1.917 | N17: 001010 | P17: 2.3 | Q17: 15 | R17: 01111 | AO17: TRUE | AU17: 14.7 | BK17: mask timer fault int | BL17: FALSE
A18: 3.76 | E18: 21 | F18: 16 | G18: 010000 | I18: 13 | J18: 39 | K18: 100111 | M18: 2 | N18: 100110 | P18: 2.4 | Q18: 16 | R18: 10000 | AO18: TRUE | AU18: 15 | BK18: PGBMR | BL18: FALSE
A19: 3.77 | E19: 22 | F19: 17 | G19: 010001 | I19: 14 | J19: 40 | K19: 101000 | M19: 2.083 | N19: 001100 | P19: 2.5 | Q19: 17 | R19: 10001 | AO19: TRUE | AU19: 15.4 | BK19: vbreg read | BL19: FALSE
A20: 3.78 | E20: 23 | F20: 18 | G20: 010010 | I20: 15 | J20: 41 | K20: 101001 | M20: 2.1 | N20: 011000 | P20: 2.6 | Q20: 18 | R20: 10010 | AO20: TRUE | AU20: 15.8 | BK20: reset reg | BL20: FALSE
A21: 3.79 | E21: 24 | F21: 19 | G21: 010011 | I21: 16 | J21: 42 | K21: 101010 | M21: 2.167 | N21: 001101 | P21: 2.7 | Q21: 19 | R21: 10011 | AU21: 16.2 | BK21: vindpm disable | BL21: FALSE
A22: 3.8 | E22: 25 | F22: 20 | G22: 010100 | I22: 17 | J22: 43 | K22: 101011 | M22: 2.2 | N22: 011001 | P22: 2.8 | Q22: 20 | R22: 10100 | AU22: 16.5 | BK22: 2xtmr | BL22: FALSE
A23: 3.81 | E23: 26 | F23: 21 | G23: 010101 | I23: 18 | J23: 44 | K23: 101100 | M23: 2.25 | N23: 001110 | P23: 2.9 | Q23: 21 | R23: 10101 | AU23: 16.9
A24: 3.82 | E24: 27 | F24: 22 | G24: 010110 | I24: 19 | J24: 45 | K24: 101101 | M24: 2.3 | N24: 011010 | P24: 3 | Q24: 22 | R24: 10110 | AU24: 17.4
A25: 3.83 | E25: 28 | F25: 23 | G25: 010111 | I25: 20 | J25: 46 | K25: 101110 | M25: 2.333 | N25: 001111 | P25: 3.1 | Q25: 23 | R25: 10111 | AU25: 17.8
A26: 3.84 | E26: 29 | F26: 24 | G26: 011000 | I26: 21 | J26: 47 | K26: 101111 | M26: 2.4 | N26: 011011 | P26: 3.2 | Q26: 24 | R26: 11000 | AU26: 18.2
A27: 3.85 | E27: 30 | F27: 25 | G27: 011001 | I27: 22 | J27: 48 | K27: 110000 | M27: 2.417 | N27: 101011 | P27: 3.3 | Q27: 25 | R27: 11001 | AU27: 18.7
A28: 3.86 | E28: 31 | F28: 26 | G28: 011010 | I28: 23 | J28: 49 | K28: 110001 | M28: 2.5 | N28: 011100 | AU28: 19.1
A29: 3.87 | E29: 32 | F29: 27 | G29: 011011 | I29: 24 | J29: 50 | K29: 110010 | M29: 2.583 | N29: 101101 | AU29: 19.6
A30: 3.88 | E30: 33 | F30: 28 | G30: 011100 | I30: 25 | J30: 51 | K30: 110011 | M30: 2.6 | N30: 011101 | AU30: 20
A31: 3.89 | E31: 34 | F31: 29 | G31: 011101 | I31: 26 | J31: 52 | K31: 110100 | M31: 2.667 | N31: 101110 | AU31: 20.5
A32: 3.9 | E32: 35 | F32: 30 | G32: 011110 | I32: 27 | J32: 53 | K32: 110101 | M32: 2.7 | N32: 011110 | AU32: 21
A33: 3.91 | E33: 40 | F33: 32 | G33: 100000 | I33: 28 | J33: 54 | K33: 110110 | M33: 2.75 | N33: 101111 | AU33: 21.5
A34: 3.92 | E34: 50 | F34: 33 | G34: 100001 | I34: 29 | J34: 55 | K34: 110111 | M34: 2.8 | N34: 011111 | AU34: 22.1
A35: 3.93 | E35: 60 | F35: 34 | G35: 100010 | I35: 30 | J35: 56 | K35: 111000 | M35: 2.9 | N35: 111011 | AU35: 22.6
A36: 3.94 | E36: 70 | F36: 35 | G36: 100011 | I36: 31 | J36: 57 | K36: 111001 | M36: 3 | N36: 111100 | AU36: 23.2
A37: 3.95 | E37: 80 | F37: 36 | G37: 100100 | I37: 32 | J37: 58 | K37: 111010 | M37: 3.1 | N37: 111101 | AU37: 23.7
A38: 3.96 | E38: 90 | F38: 37 | G38: 100101 | I38: 33 | J38: 59 | K38: 111011 | M38: 3.2 | N38: 111110 | AU38: 24.3
A39: 3.97 | E39: 100 | F39: 38 | G39: 100110 | I39: 34 | J39: 60 | K39: 111100 | M39: 3.3 | N39: 111111 | AU39: 24.9
A40: 3.98 | E40: 110 | F40: 39 | G40: 100111 | I40: 35 | J40: 61 | K40: 111101 | AU40: 25.5
A41: 3.99 | E41: 120 | F41: 40 | G41: 101000 | I41: 36 | J41: 62 | K41: 111110 | AU41: 26.1
A42: 4 | E42: 130 | F42: 41 | G42: 101001 | I42: 37 | J42: 63 | K42: 111111 | AU42: 26.7
A43: 4.01 | E43: 140 | F43: 42 | G43: 101010 | P43: =hash(5) ->  | AU43: 27.4
A44: 4.02 | E44: 150 | F44: 43 | G44: 101011 | AU44: 28
A45: 4.03 | E45: 160 | F45: 44 | G45: 101100 | AU45: 28.7
A46: 4.04 | E46: 170 | F46: 45 | G46: 101101 | AU46: 29.4
A47: 4.05 | E47: 180 | F47: 46 | G47: 101110 | AU47: 30.1
A48: 4.06 | E48: 190 | F48: 47 | G48: 101111 | AU48: 30.9
A49: 4.07 | E49: 200 | F49: 48 | G49: 110000 | AU49: 31.6
A50: 4.08 | E50: 210 | F50: 49 | G50: 110001 | AU50: 32.4
A51: 4.09 | E51: 220 | F51: 50 | G51: 110010 | AU51: 33.2
A52: 4.1 | E52: 230 | F52: 51 | G52: 110011 | AU52: 34
A53: 4.11 | E53: 240 | F53: 52 | G53: 110100 | AU53: 34.8
A54: 4.12 | E54: 250 | F54: 53 | G54: 110101 | AU54: 35.7
A55: 4.13 | E55: 260 | F55: 54 | G55: 110110 | AU55: 36.5
A56: 4.14 | E56: 270 | F56: 55 | G56: 110111 | AU56: 37.4
A57: 4.15 | E57: 280 | F57: 56 | G57: 111000 | AU57: 38.3
A58: 4.16 | E58: 290 | F58: 57 | G58: 111001 | AU58: 39.2
A59: 4.17 | E59: 300 | F59: 58 | G59: 111010 | AU59: 40.2
A60: 4.18 | AU60: 41.2
A61: 4.19 | AU61: 42.2
A62: 4.2 | AU62: 43.2
A63: 4.21 | AU63: 44.2
A64: 4.22 | AU64: 45.3
A65: 4.23 | AU65: 46.4
A66: 4.24 | AU66: 47.5
A67: 4.25 | AU67: 48.7
A68: 4.26 | AU68: 49.9
A69: 4.27 | AU69: 51.1
A70: 4.28 | AU70: 52.3
A71: 4.29 | AU71: 53.6
A72: 4.3 | AU72: 54.9
A73: 4.31 | AU73: 56.2
A74: 4.32 | AU74: 57.6
A75: 4.33 | AU75: 59
A76: 4.34 | AU76: 60.4
A77: 4.35 | AU77: 61.9
A78: 4.36 | AU78: 63.4
A79: 4.37 | AU79: 64.9
A80: 4.38 | AU80: 66.5
A81: 4.39 | AU81: 68.1
A82: 4.4 | AU82: 69.8
A83: 4.41 | AU83: 71.5
A84: 4.42 | AU84: 73.2
A85: 4.43 | AU85: 75
A86: 4.44 | AU86: 76.8
A87: 4.45 | AU87: 78.7
A88: 4.46 | AU88: 80.6
A89: 4.47 | AU89: 82.5
A90: 4.48 | AU90: 84.5
A91: 4.49 | AU91: 86.6
A92: 4.5 | AU92: 88.7
A93: 4.51 | AU93: 90.9
A94: 4.52 | AU94: 93.1
A95: 4.53 | AU95: 95.3
A96: 4.54 | AU96: 97.6
A97: 4.55 | AU97: =AU1*10 -> 100
A98: 4.56 | AU98: =AU2*10 -> 102
A99: 4.57 | AU99: 105
A100: 4.58 | AU100: 107
A101: 4.59 | AU101: 110
A102: 4.6 | AU102: 113
A103: 4.61 | AU103: 115
A104: 4.62 | AU104: 118
A105: 4.63 | AU105: 121
A106: 4.64 | AU106: 124
A107: 4.65 | AU107: 127
AU108: 130
AU109: 133
AU110: 137
AU111: 140
AU112: 143
AU113: 147
AU114: 150
AU115: 154
AU116: 158
AU117: 162
AU118: 165
AU119: 169
AU120: 174
AU121: 178
AU122: 182
AU123: 187
AU124: 191
AU125: 196
AU126: 200
AU127: 205
AU128: 210
AU129: 215
AU130: =AU34*10 -> 221
AU131: 226
AU132: 232
AU133: 237
AU134: 243
AU135: 249
AU136: 255
AU137: 261
AU138: 267
AU139: 274
AU140: 280
AU141: 287
AU142: 294
AU143: 301
AU144: 309
AU145: 316
AU146: 324
AU147: 332
AU148: 340
AU149: 348
AU150: 357
AU151: 365
AU152: 374
AU153: =AU57*10 -> 383
AU154: 392
AU155: 402
AU156: 412
AU157: 422
AU158: 432
AU159: 442
AU160: 453
AU161: 464
AU162: =AU66*10 -> 475
AU163: 487
AU164: 499
AU165: 511
AU166: 523
AU167: 536
AU168: 549
AU169: 562
AU170: 576
AU171: 590
AU172: 604
AU173: 619
AU174: 634
AU175: 649
AU176: 665
AU177: 681
AU178: 698
AU179: 715
AU180: 732
AU181: 750
AU182: 768
AU183: 787
AU184: 806
AU185: 825
AU186: =AU90*10 -> 845
AU187: 866
AU188: 887
AU189: 909
AU190: 931
AU191: 953
AU192: 976
AU193: =AU1*100 -> 1000
AU194: =AU2*100 -> 1020
AU195: 1050
AU196: 1070
AU197: 1100
AU198: 1130
AU199: 1150
AU200: 1180
... 184 more rows
